Cogmind - Beta 15 @@@ ROGUE MODE // 2025.06.13 @ 00:37:34 Player: ldi (hl). (hl) Result: Destroyed by S-43 Plague with Heavy Machine Gun Performance ------------- Evolutions (7) 3500 Regions Visited (17) 3400 Robots Destroyed (204) 1020 Value Destroyed (9332) 9332 Prototype IDs (14) 280 Alien Tech Used (0) 0 Bonus (4882) 4882 TOTAL SCORE: 22414 Bonus ------- High Alert Combat Kills 767 Follower Combat Kills 1398 Met Warlord at Base 500 MAIN.C Attacked Warlord 500 Warlord Defense Kills 2018 Friendly Fire -301 Cogmind --------- Core Integrity 0/1300 Matter 249/300 Energy 85/100 System Corruption 12% Temperature Cool (0) Movement Core (50) Location -3/Research Parts ------- > --- POWER (3) -------- (None) > --- PROPULSION (4) --- Faulty Diametric Drive > --- UTILITY (12) ----- (None) > --- WEAPON (2) ------- (None) > --- INVENTORY (5) ---- Improved System Restoration Module Advanced Plasma Cannon Peak State ------------ > --- POWER ------------ Neutrino Core Antimatter Reactor > --- PROPULSION ------- Improved Medium Treads Improved Medium Treads Heavy Treads > --- UTILITY ---------- Large Storage Unit Advanced Targeting Computer Core Analyzer Armor Integrity Analyzer Phase Shifter Hardened Heavy Armor Plating Force Field Advanced Hacking Suite Improved Corruption Screen Drone Bay > --- WEAPON ----------- Phase Cannon KE Penetrator > --- INVENTORY -------- Reinforced Deuterium Engine Experimental Heat Sink Advanced Cooling System Compact Matter Pod Improved Sensor Array Improved Signal Interpreter Matter Filter Layered Medium Armor Plating Layered Medium Armor Plating Phase Cannon Phase Cannon Heavy Rocket Launcher Vortex Catalyst Activator [Rating: 100] Favorites ----------- Power Heavy Deuterium Engine Engine Heavy Deuterium Engine Power Core Neutrino Core Reactor Antimatter Reactor Propulsion Light Treads Treads Light Treads Leg Thunder Leg Wheel Compact Wheel Flight Unit Q-thruster Utility Large Storage Unit Device Improved Heat Sink Storage Large Storage Unit Processor Advanced Targeting Computer Hackware Advanced Hacking Suite Protection Hardened Heavy Armor Plating Weapon Beam Rifle Energy Gun Beam Rifle Energy Cannon Heavy Ion Cannon Ballistic Gun KE Penetrator Launcher Grenade Launcher Slashing Weapon Power Sword Build | -11 -10 -10 -10 -8 -7 -7 -7 -5 -5 -5 -5 -5 -4 -4 -4 -4 -3 ------- Run | Yrd Mat Min Sub Mat Fac Sto Rec Fac Was Fac Upp War Pro Fac Upp Upp Res Slots Evolved 14 | . . . . 4 2 . . 4 . . . . . 2 . . 2 Power 2 | . . . . . 1 . . . . . . . . . . . 1 Propulsion 2 | . . . . 1 . . . 1 . . . . . . . . . Utility 10 | . . . . 3 1 . . 3 . . . . . 2 . . 1 Weapon . | . . . . . . . . . . . . . . . . . . Parts Attached 173 | 6 5 . 5 14 7 24 1 30 5 3 . 3 4 42 2 2 20 Power 24 | 1 . . 1 2 1 5 . 2 1 1 . . . 6 . . 4 Engine 7 | 1 . . 1 . . 3 . 1 . . . . . 1 . . . Core 9 | . . . . 2 1 2 . 1 . 1 . . . 1 . . 1 Reactor 8 | . . . . . . . . . 1 . . . . 4 . . 3 Propulsion 49 | 2 . . 2 3 . 7 . 13 1 . . . . 11 . . 10 Treads 30 | 2 . . 2 3 . 7 . 10 1 . . . . 4 . . 1 Leg 9 | . . . . . . . . 3 . . . . . 3 . . 3 Wheel 4 | . . . . . . . . . . . . . . 4 . . . Hover . | . . . . . . . . . . . . . . . . . . Flight 6 | . . . . . . . . . . . . . . . . . 6 Utility 60 | 1 2 . . 7 2 8 1 10 1 2 . 2 . 16 2 1 5 Device 21 | . 1 . . 2 1 3 . 3 . 1 . 2 . 5 . . 3 Storage 8 | 1 1 . . 1 . 1 . . . 1 . . . 1 2 . . Processor 15 | . . . . 4 . 1 1 3 1 . . . . 3 . . 2 Hackware 2 | . . . . . . . . 2 . . . . . . . . . Protection 14 | . . . . . 1 3 . 2 . . . . . 7 . 1 . Artifact . | . . . . . . . . . . . . . . . . . . Weapon 40 | 2 3 . 2 2 4 4 . 5 2 . . 1 4 9 . 1 1 Energy Gun 15 | 1 2 . . 2 2 2 . 1 1 . . . . 3 . . 1 Energy Cannon 6 | . . . . . 2 . . . . . . . 2 1 . 1 . Ballistic Gun 13 | 1 . . . . . 2 . 3 1 . . . 1 5 . . . Ballistic Cannon . | . . . . . . . . . . . . . . . . . . Launcher 5 | . 1 . 2 . . . . . . . . 1 1 . . . . Special Weapon . | . . . . . . . . . . . . . . . . . . Impact Weapon . | . . . . . . . . . . . . . . . . . . Slashing Weapon 1 | . . . . . . . . 1 . . . . . . . . . Piercing Weapon . | . . . . . . . . . . . . . . . . . . Special Melee Weapon . | . . . . . . . . . . . . . . . . . . Unidentified Prototypes 13 | . . . . . 1 5 . 1 . 1 . 1 . 3 . . 1 Parts Lost 66 | . . . 5 . . 7 . 16 . . . . . 28 1 . 9 Power 10 | . . . 1 . . 1 . 2 . . . . . 6 . . . Propulsion 26 | . . . 2 . . 1 . 7 . . . . . 9 . . 7 Utility 19 | . . . . . . 4 . 3 . . . . . 10 1 . 1 Weapon 11 | . . . 2 . . 1 . 4 . . . . . 3 . . 1 Highest Loss Streak 18 | . . . 2 . . 2 . 11 . . . . . 17 18 . 7 To Critical Strikes 1 | . . . . . . . . 1 . . . . . . . . . Average Backups 12 | . 9 13 14 13 13 13 14 13 14 14 15 14 14 13 4 4 3 Power . | . 1 1 . . . . . . 1 1 1 1 1 . . . . Propulsion 1 | . 3 4 3 2 1 2 2 . . . 1 1 . . . . . Utility 6 | . 2 4 5 7 9 7 10 10 9 8 8 8 8 7 2 2 . Weapon 3 | . 2 3 4 3 3 2 2 2 4 4 5 4 4 5 2 2 1 Tool/Special . | . . . . . . . . . . . . . . . . . . Unused Backups 35 | . 2 1 . 5 2 4 . 3 1 3 . 2 1 8 . . 3 Power 6 | . . . . 1 . 1 . . . 1 . . . 2 . . 1 Propulsion 4 | . . . . 1 1 1 . . . . . . 1 . . . . Utility 12 | . 1 1 . 3 1 2 . . . 1 . . . 2 . . 1 Weapon 13 | . 1 . . . . . . 3 1 1 . 2 . 4 . . 1 Tool/Special . | . . . . . . . . . . . . . . . . . . Average Slot Usage (%) 85 | . 87 100 83 96 99 99 97 89 90 88 88 84 87 90 2 7 45 Engine 6 | . 14 14 13 1 . 13 15 5 5 4 . . . 1 . . . Core 2 | . . . . 7 15 1 . 2 4 . 5 5 5 3 . . . Reactor 1 | . . . . . . . . . . 5 5 5 5 5 . . 8 Treads 18 | . 26 28 22 26 23 23 23 16 19 17 17 17 17 14 . . 2 Device 10 | . 6 14 14 17 22 16 7 8 5 5 5 5 5 9 . . 5 Storage 7 | . 14 14 14 9 7 7 7 5 5 5 5 5 5 4 2 5 3 Processor 14 | . . . . 16 15 11 20 22 22 23 23 23 23 23 . . 5 Hackware 2 | . . . . . . . . 5 5 5 5 5 5 4 . . . Protection 4 | . . . . . . 8 7 4 5 5 5 5 5 9 . 2 3 Energy Gun 5 | . 23 26 5 16 10 . . . 5 5 5 . . 2 . . 2 Energy Cannon 2 | . . . . . 4 11 . . . . . . 7 1 . . 2 Ballistic Gun 3 | . 1 . . . . 3 15 8 5 5 5 3 1 5 . . . Launcher 1 | . . 1 11 . . . . . . . . 3 1 . . . . Peak Build Rating 100 | 6 11 11 11 30 39 43 44 85 91 92 92 98 96 100 5 10 87 Average Rating 51 | 4 8 10 8 24 36 40 42 63 84 90 92 94 89 91 3 6 55 On Entrance 41 | . 6 10 11 9 30 39 40 44 79 91 92 92 96 90 2 5 8 Naked Turns 222 | . . . . . . . . . . . . . . 10 199 . 13 Heaviest Build 104 | 13 32 32 32 33 57 76 54 72 81 81 80 96 92 104 1 3 92 Greatest Support 130 | 40 40 40 46 69 66 66 60 106 130 130 130 130 130 130 3 3 30 Greatest Overweight (x) 18 | . 10 . 1 . . 1 . 3 . . . . . 18 . . 3 Average Overweight (x) . | . . . . . . . . . . . . . . . . . . Largest Inventory Capacity 15 | 8 15 15 15 15 15 15 15 15 15 15 15 15 15 15 5 5 5 Average Capacity 13 | 6 12 15 15 15 15 15 15 15 15 15 15 15 15 14 5 5 5 Most Carried 15 | 2 13 15 15 15 15 15 15 15 15 15 15 15 15 15 5 5 5 Average Carried 13 | . 9 13 14 13 13 14 15 14 14 14 15 14 14 14 4 4 3 Final Capacity 15 | 8 15 15 15 15 15 15 15 15 15 15 15 15 15 5 5 5 5 Final Carried 15 | 2 12 15 12 15 15 15 15 15 15 15 15 15 15 5 4 5 2 Class Distribution -------------------- 49% | Mutant 42% | Scavenger-Mutant 4% | Commander-Mutant 3% | Hacker-Mutant Dominant Class ---------------- Mutant | -10/Materials Mutant | -10/Mines Mutant | -10/Subcaves Mutant | -8/Materials Mutant | -7/Factory Mutant | -7/Storage Scavenger-Mutant | -7/Recycling Scavenger-Mutant | -5/Factory Scavenger-Mutant | -5/Waste Scavenger-Mutant | -5/Factory Scavenger-Mutant | -5/Upper Caves Scavenger-Mutant | -5/Warlord Scavenger-Mutant | -4/Proximity Caves Scavenger-Mutant | -4/Factory Mutant | -4/Upper Caves Mutant | -4/Upper Caves Mutant | -3/Research Resources | -11 -10 -10 -10 -8 -7 -7 -7 -5 -5 -5 -5 -5 -4 -4 -4 -4 -3 ----------- Run | Yrd Mat Min Sub Mat Fac Sto Rec Fac Was Fac Upp War Pro Fac Upp Upp Res Matter Collected 4332 | 180 250 70 143 362 57 746 57 760 . 108 16 50 176 1182 10 20 145 Remotely . | . . . . . . . . . . . . . . . . . . Salvage Created 9238 | . 204 200 136 528 170 2232 72 1544 . 95 41 71 449 3184 . . 312 Parts 430 | . 19 7 6 12 7 99 1 83 . 1 1 3 18 160 . . 13 Haulers Intercepted 6 | . . . . . . 3 . . . 1 . . 1 1 . . . Recyclers Shooed 6 | . 1 . . . . . . 3 . . . . . 2 . . . Parts Field Recycled . | . . . . . . . . . . . . . . . . . . Retrieved Matter . | . . . . . . . . . . . . . . . . . . Parts Self-Destructed 45 | . . . 15 . . . . . . . 1 . 29 . . . . Prevented . | . . . . . . . . . . . . . . . . . . Kills | -11 -10 -10 -10 -8 -7 -7 -7 -5 -5 -5 -5 -5 -4 -4 -4 -4 -3 ------- Run | Yrd Mat Min Sub Mat Fac Sto Rec Fac Was Fac Upp War Pro Fac Upp Upp Res Combat Hostiles Destroyed 155 | . 5 4 6 10 3 34 1 25 . . 1 15 8 41 . . 2 Melee 4 | . . . . . . . . 4 . . . . . . . . . Guns 80 | . 2 . . 9 2 6 1 20 . . 1 . . 38 . . 1 Cannons 27 | . . . . . 1 21 . 1 . . . . 2 1 . . 1 AOE 39 | . 3 4 6 . . 3 . . . . . 15 6 2 . . . Classes Destroyed 19 | . 4 . 1 2 . 5 . 2 . . . 2 . 3 . . . Worker 13 | . . . . . . 5 . . . . . . . 8 . . . Builder 18 | . 2 1 . . . 6 . 4 . . . . . 5 . . . Hauler 6 | . . . . . . 3 . . . 1 . . 1 1 . . . Recycler 7 | . 1 1 . . . 2 . 1 . . . . . 1 . . 1 Operator 1 | . . . . . . . . . . . . . . 1 . . . Watcher 3 | . . . . . . 2 . . . . . . . 1 . . . Swarmer 14 | . 3 . . . . 5 . 6 . . . . . . . . . Saboteur 1 | . . . . . . . . . . . . . . 1 . . . Grunt 63 | . 2 4 . 8 2 14 . 8 . . . 3 6 15 . . 1 Brawler 6 | . . . . . . 1 . . . . . 4 1 . . . . Duelist 1 | . . . . . . . . 1 . . . . . . . . . Protector 2 | . . . . . . . . . . . . 2 . . . . . Sentry 24 | . . . . 1 1 11 1 5 . . . . . 5 . . . Specialist 1 | . . . . . . . . . . . . . . 1 . . . Hunter 13 | . . . . 1 . 1 . 2 . . . . . 9 . . . Programmer 20 | . . . . . . 2 . 2 . . . 5 . 10 . . 1 Behemoth 3 | . . . . . . . . 1 . . 1 . 1 . . . . Striker 1 | . . . . . . . . . . . . 1 . . . . . Subdweller 6 | . . . 6 . . . . . . . . . . . . . . Wasp 1 | . . . . . . . . . . . . 1 . . . . . Best Kill Streak 12 | . 3 4 3 3 2 12 1 8 . 1 1 11 4 9 . . 1 Combat Bots Only 11 | . 3 4 3 3 2 4 1 7 . . 1 11 4 6 . . 1 Max Kills in Single Turn 6 | . 3 3 1 1 1 3 1 2 . 1 1 6 3 3 . . 1 Gunslinging 1 | . . . . . . . . . . . . . . 1 . . . Exploded 6 | . 3 3 1 . . 2 . . . . . 6 3 1 . . . Melee 1 | . . . . . . . . 1 . . . . . . . . . Uniques/NPCs Destroyed . | . . . . . . . . . . . . . . . . . . Combat | -11 -10 -10 -10 -8 -7 -7 -7 -5 -5 -5 -5 -5 -4 -4 -4 -4 -3 -------- Run | Yrd Mat Min Sub Mat Fac Sto Rec Fac Was Fac Upp War Pro Fac Upp Upp Res Hostile Shots Fired 1457 | . 10 3 23 52 28 340 45 185 . . . 6 21 511 34 . 199 Missed 452 | . 2 . 9 14 6 105 12 48 . . . 6 9 147 16 . 78 Hits 1005 | . 8 3 14 38 22 235 33 137 . . . . 12 364 18 . 121 Melee 6 | . . . . . . 1 . 5 . . . . . . . . . Projectile 999 | . 8 3 14 38 22 234 33 132 . . . . 12 364 18 . 121 AOE 4 | . . . . . . . . 2 . . . . . 2 . . . Critical Strikes 40 | . . . . 1 1 7 . 4 . . . 1 . 18 2 . 6 Damage Taken 16030 | . 83 45 453 588 148 1834 264 3087 . . 24 44 288 6336 366 . 2470 Core 3023 | . 30 17 45 33 17 223 11 286 . . . . . 700 351 . 1310 Absorbed by Shields 2157 | . . . . . 88 652 . . . . . . . 1027 . . 390 Reduced by Siege Mode 73 | . . . . . . . . . . . . . . 73 . . . Redirected to Shielding 30 | . . . . . . . . . . . . . . . . . 30 Regen/Repaired (Parts) 567 | . . . . . . . . . 204 . . 30 212 121 . . . Core Remaining (%) 66 | 100 . . 63 94 . . 64 . . . . . 71 . . 8 . Volleys Fired 456 | . 11 7 21 46 10 108 5 71 . 2 4 5 16 134 . . 16 Largest 2 | . 2 2 1 2 2 2 2 2 . 2 2 1 2 2 . . 2 Hottest 170 | . 112 112 30 112 125 125 56 114 . 114 114 20 170 162 . . 166 Shots Fired 853 | . 21 9 21 88 20 212 10 135 . 4 8 5 25 263 . . 32 Gun 598 | . 20 4 . 84 16 50 10 126 . 4 8 . 3 255 . . 18 Cannon 203 | . . . . . 4 158 . 7 . . . . 16 4 . . 14 Launcher 52 | . 1 5 21 4 . 4 . 2 . . . 5 6 4 . . . Special . | . . . . . . . . . . . . . . . . . . Kinetic 394 | . . . . . . 50 10 119 . 2 4 . 3 206 . . . Thermal 407 | . 20 4 . 84 20 158 . 14 . 2 4 . 16 53 . . 32 Explosive 44 | . 1 5 21 4 . 4 . 2 . . . . 6 1 . . . Electromagnetic . | . . . . . . . . . . . . . . . . . . Entropic 8 | . . . . . . . . . . . . 5 . 3 . . . Robot Hit Streak 32 | . 6 9 22 13 13 13 12 32 . 3 6 1 5 18 . . 17 Robot Miss Streak 4 | . 4 . . 4 3 2 . 2 . 1 1 2 2 3 . . 3 Penetration Max 2 | . . . . . . . . 1 . . . . . 2 . . . Secondary Targets 11 | . . . . . . . . 3 . 1 . . . 7 . . . Max Gunslinging Chain 1 | . . . . . . . . 1 . 1 . . . 1 . . . Shots Hit Robots 640 | . 11 3 13 62 15 160 10 118 . 3 6 2 15 202 . . 20 Core Hits 399 | . 10 12 12 24 6 77 3 69 . 2 3 18 28 123 . . 12 Critical Kills 20 | . . . . . . 2 . . . . . . . 18 . . . Critical Parts Destroyed 23 | . . . . . . . . . . . . . . 22 . . 1 Critical Strikes 57 | . 1 1 . 7 1 2 . 1 . . 1 . 1 41 . . 1 Burn 11 | . 1 1 . 7 1 . . . . . 1 . . . . . . Meltdown 2 | . . . . . . 2 . . . . . . . . . . . Destroy 43 | . . . . . . . . . . . . . 1 41 . . 1 Sever 1 | . . . . . . . . 1 . . . . . . . . . Melee Attacks 17 | . . . . . . . . 17 . . . . . . . . . Impact . | . . . . . . . . . . . . . . . . . . Slashing 17 | . . . . . . . . 17 . . . . . . . . . Piercing . | . . . . . . . . . . . . . . . . . . Sneak Attacks . | . . . . . . . . . . . . . . . . . . Combat Hostiles . | . . . . . . . . . . . . . . . . . . Follow-up Attacks . | . . . . . . . . . . . . . . . . . . Damage Inflicted 24687 | . 291 337 892 981 251 4395 187 2949 . 86 157 4460 1420 7695 . . 586 Guns 11631 | . 159 44 . 931 200 809 187 2406 . 77 157 . 54 6304 . . 303 Cannons 4131 | . . . . . 51 3235 . 136 . . . . 335 121 . . 253 Explosions 8428 | . 132 293 892 50 . 328 . 29 . . . 4460 1031 1213 . . . Melee 358 | . . . . . . . . 358 . . . . . . . . . Ramming 139 | . . . . . . 23 . 20 . 9 . . . 57 . . 30 Kinetic 8770 | . . . . . . 809 187 2236 . 53 83 . 54 5348 . . . Thermal 6992 | . 159 44 . 931 251 3235 . 306 . 24 74 . 335 1077 . . 556 Explosive 2782 | . 132 293 892 50 . 328 . 29 . . . . 1031 27 . . . Electromagnetic . | . . . . . . . . . . . . . . . . . . Impact . | . . . . . . . . . . . . . . . . . . Slashing 358 | . . . . . . . . 358 . . . . . . . . . Piercing . | . . . . . . . . . . . . . . . . . . Entropic 5646 | . . . . . . . . . . . . 4460 . 1186 . . . Highest Corruption 12 | . . . . . . 1 1 . . . . . . . . . 12 Average Corruption 1 | . . . . . . 1 1 . . . . . . . . . 7 Corruption Purged . | . . . . . . . . . . . . . . . . . . Corruption Blocked 15 | . . . . . . . . 4 . 1 . . . 10 . . . Effects 16 | . . . . . . 10 3 . . . . . . . . . 3 Message Errors 7 | . . . . . . 4 . . . . . . . . . . 3 Matter Fused 3 | . . . . . . 2 1 . . . . . . . . . . Heat Flow Errors 2 | . . . . . . . 2 . . . . . . . . . . Energy Discharges 2 | . . . . . . 2 . . . . . . . . . . . Data Loss (major) 2 | . . . . . . 2 . . . . . . . . . . . Overload Shots . | . . . . . . . . . . . . . . . . . . Overflow Damage 733 | . . . . 1 . 128 . . . . . 407 64 133 . . . Projectiles 142 | . . . . . . 124 . . . . . . 18 . . . . Explosions 591 | . . . . 1 . 4 . . . . . 407 46 133 . . . Melee . | . . . . . . . . . . . . . . . . . . Knockbacks 1 | . . . . . . . . . . . . . . 1 . . . Impact 1 | . . . . . . . . . . . . . . 1 . . . Kinetic . | . . . . . . . . . . . . . . . . . . Secondary . | . . . . . . . . . . . . . . . . . . Self-Inflicted Damage 219 | . . . 67 . . 14 . . . . . . 24 100 . . 14 Shots 10 | . . . 6 . . 1 . . . . . . 2 1 . . . Rammed 27 | . . . . . . 4 . 2 . 2 . . . 14 . . 5 Targets Rammed 32 | . . . . . . 6 . 4 . 2 . . . 15 . . 5 Kicked . | . . . . . . . . . . . . . . . . . . Crushed 5 | . . . . . . 2 . 2 . . . . . 1 . . . Highest Temperature 377 | . 159 42 . 126 128 246 239 139 . 3 . . 377 327 326 . 313 Average Temperature 73 | . 46 23 . 38 58 72 82 74 . 2 . . 134 60 175 . 119 Received Heat Transfer 3062 | . 24 24 27 288 89 583 90 453 . . . . 60 985 378 . 61 Effects 1 | . . . . . . . . . . . . . . . . . 1 Energy Bleed 1 | . . . . . . . . . . . . . . . . . 1 Siege Activations 5 | . . . . . . . . . . . . . . 5 . . . Total Turns 80 | . . . . . . . . . . . . . . 80 . . . Longest Duration 32 | . . . . . . . . . . . . . . 32 . . . Martial Activations . | . . . . . . . . . . . . . . . . . . Shielding Activations . | . . . . . . . . . . . . . . . . . . Robots Disrupted . | . . . . . . . . . . . . . . . . . . Combat Hostiles . | . . . . . . . . . . . . . . . . . . Robots Corrupted . | . . . . . . . . . . . . . . . . . . Combat Hostiles . | . . . . . . . . . . . . . . . . . . Parts Fried . | . . . . . . . . . . . . . . . . . . Impact Corruptions . | . . . . . . . . . . . . . . . . . . Robots Melted 5 | . . . . 1 . 4 . . . . . . . . . . . Combat Hostiles 5 | . . . . 1 . 4 . . . . . . . . . . . Parts Melted 37 | . 2 . . 15 1 11 . 1 . . . . 2 4 . . 1 Heat Transferred 11951 | . 481 185 . 2812 629 4477 . 444 . 37 185 . 407 1554 . . 740 Parts Sabotaged . | . . . . . . . . . . . . . . . . . . Parts Stolen . | . . . . . . . . . . . . . . . . . . Parts Stripped . | . . . . . . . . . . . . . . . . . . Power Chain Reactions . | . . . . . . . . . . . . . . . . . . Alert | -11 -10 -10 -10 -8 -7 -7 -7 -5 -5 -5 -5 -5 -4 -4 -4 -4 -3 ------- Run | Yrd Mat Min Sub Mat Fac Sto Rec Fac Was Fac Upp War Pro Fac Upp Upp Res Maximum Alert Level 3 | . . . . . . 3 1 1 . 3 . . . 3 . . . Low Security (%) 68 | 100 100 100 . 100 100 39 . 92 100 21 . . . 29 . . 100 Level 1 9 | . . . . . . 15 100 7 . . . . . 18 . . . Level 2 17 | . . . . . . 39 . . . 10 . . . 44 . . . Level 3 4 | . . . . . . 4 . . . 67 . . . 7 . . . Level 4 . | . . . . . . . . . . . . . . . . . . Level 5 . | . . . . . . . . . . . . . . . . . . High Security . | . . . . . . . . . . . . . . . . . . Max Security . | . . . . . . . . . . . . . . . . . . Peak Influence 967 | . 85 126 . 60 40 736 302 330 114 967 . . . 815 . . 144 Initial 282 | . . 20 . . 9 . 282 93 114 . . . . 170 . . 144 Average 187 | . 20 34 . 24 5 335 260 55 27 672 . . . 380 . . 39 Influence Increases 7030 | . 187 126 . 292 81 1473 20 714 . 1077 60 763 499 1621 45 . 72 Destroy 0b10 Robot/C 3660 | . 100 80 . 200 60 820 20 500 . 240 20 400 260 920 . . 40 Destroy 0b10 Robot/NC 270 | . 15 10 . . . 90 . 25 . 20 . 15 5 85 . . 5 Destroy Leader 750 | . 20 20 . 40 20 250 . 100 . 66 10 . 20 194 . . 10 Allied During Kill 1188 | . . . . . . 188 . . . 326 30 348 214 82 . . . Successful Hack 126 | . 21 . . 19 . 25 . 24 . 8 . . . 29 . . . Disable Machine 510 | . 15 . . 15 . 60 . 15 . 315 . . . 90 . . . Destroy Structure 346 | . 1 16 . 18 1 40 . 20 . 102 . . . 146 . . 2 Partial Spotted 15 | . 15 . . . . . . . . . . . . . . . . Lose Combat Pursuer 165 | . . . . . . . . 30 . . . . . 75 45 . 15 Influence Decreases 7030 | . 134 179 . 270 103 749 522 610 326 160 501 552 916 1190 430 101 287 Entered New Map 2825 | . . 33 . . 13 . 442 129 212 . 341 476 687 100 260 61 71 Time Decay 3222 | . 134 146 . 248 90 539 80 371 114 140 160 56 199 550 160 40 195 Lost Part 491 | . . . . . . 70 . 110 . . . . . 280 10 . 21 Lost Ally 320 | . . . . . . 140 . . . 20 . 20 30 110 . . . Purge Threat 172 | . . . . 22 . . . . . . . . . 150 . . . Squads Dispatched 46 | . 2 . . 3 2 13 . 5 . 4 . . . 14 . . 3 Investigation 14 | . 1 . . 2 1 4 . 1 . 2 . . . 2 . . 1 Extermination 10 | . . . . . . 4 . 2 . . . . . 2 . . 2 Reinforcement 15 | . 1 . . 1 1 4 . 2 . 1 . . . 5 . . . Assault 1 | . . . . . . 1 . . . . . . . . . . . Garrison 6 | . . . . . . . . . . 1 . . . 5 . . . Intercept . | . . . . . . . . . . . . . . . . . . Searches Triggered . | . . . . . . . . . . . . . . . . . . Construction Impeded 5 | . . . . . . 3 . . . . . . . 2 . . . Haulers Reinforced 1 | . . . . . . 1 . . . . . . . . . . . Active Scanning Responses . | . . . . . . . . . . . . . . . . . . Cargo Convoy Interrupts 2 | . . . . . . . . . . . . . . 1 . . 1 Stealth | -11 -10 -10 -10 -8 -7 -7 -7 -5 -5 -5 -5 -5 -4 -4 -4 -4 -3 --------- Run | Yrd Mat Min Sub Mat Fac Sto Rec Fac Was Fac Upp War Pro Fac Upp Upp Res Distress Signals 18 | . 1 . . 1 . 3 . 3 . . . 2 . 7 . . 1 Communications Jammed . | . . . . . . . . . . . . . . . . . . Distress Signals . | . . . . . . . . . . . . . . . . . . Times Spotted 272 | . 13 4 6 12 3 44 1 28 . 8 1 21 13 79 6 . 33 Peak Tracking Total 26 | . 5 4 2 4 2 4 1 7 . 2 1 13 5 11 4 . 26 Tactical Retreats 7 | . . . . . . . . 1 . . . . . 3 2 . 1 Traps | -11 -10 -10 -10 -8 -7 -7 -7 -5 -5 -5 -5 -5 -4 -4 -4 -4 -3 ------- Run | Yrd Mat Min Sub Mat Fac Sto Rec Fac Was Fac Upp War Pro Fac Upp Upp Res Traps Triggered 12 | . 5 . 2 1 . 2 . 2 . . . . . . . . . Indirectly . | . . . . . . . . . . . . . . . . . . Trap Hack Attempts . | . . . . . . . . . . . . . . . . . . Triggered . | . . . . . . . . . . . . . . . . . . Disarmed . | . . . . . . . . . . . . . . . . . . Reprogrammed . | . . . . . . . . . . . . . . . . . . Reused . | . . . . . . . . . . . . . . . . . . Traps Extracted . | . . . . . . . . . . . . . . . . . . Installed . | . . . . . . . . . . . . . . . . . . Triggered . | . . . . . . . . . . . . . . . . . . Machines | -11 -10 -10 -10 -8 -7 -7 -7 -5 -5 -5 -5 -5 -4 -4 -4 -4 -3 ---------- Run | Yrd Mat Min Sub Mat Fac Sto Rec Fac Was Fac Upp War Pro Fac Upp Upp Res Machines Disabled 34 | . 1 . . 1 . 4 . 1 . 21 . . . 6 . . . Max in Single Turn 2 | . 1 . . 1 . 1 . 1 . . . . . 2 . . . Garrison Access 3 | . . . . . . 1 . 1 . 1 . . . . . . . Machines Repaired . | . . . . . . . . . . . . . . . . . . Machines Dismantled . | . . . . . . . . . . . . . . . . . . Machines Sabotaged . | . . . . . . . . . . . . . . . . . . Overloaded Fab Kills . | . . . . . . . . . . . . . . . . . . Hacking | -11 -10 -10 -10 -8 -7 -7 -7 -5 -5 -5 -5 -5 -4 -4 -4 -4 -3 --------- Run | Yrd Mat Min Sub Mat Fac Sto Rec Fac Was Fac Upp War Pro Fac Upp Upp Res Machines Accessed 41 | . 3 . . 2 3 12 1 6 . 3 . 2 . 5 . 2 2 Terminals 22 | . 3 . . 2 . 9 1 4 . . . . . 3 . . . Fabricators 3 | . . . . . . . . 1 . . . . . 1 . . 1 Repair Stations 3 | . . . . . 1 1 . . . . . . . 1 . . . Recycling Units 3 | . . . . . . 1 . . . 1 . . . . . . 1 Scanalyzers 2 | . . . . . 1 . . . . 1 . . . . . . . Garrison Access 4 | . . . . . 1 1 . 1 . 1 . . . . . . . Total Hacks 109 | . 11 . . 11 8 28 1 16 . 7 . 3 . 14 . 7 3 Successful 56 | . 4 . . 5 4 10 1 10 . 3 . 3 . 9 . 7 . Failed 52 | . 7 . . 5 4 18 . 6 . 4 . . . 5 . . 3 Catastrophic 13 | . 1 . . 2 1 4 . . . 1 . . . 2 . . 2 Database Lockouts 1 | . . . . 1 . . . . . . . . . . . . . Manual 52 | . 7 . . 11 . 11 . 10 . 2 . . . 9 . . 2 Terminals 67 | . 11 . . 11 . 21 1 13 . . . . . 10 . . . Fabricators 4 | . . . . . . . . 1 . . . . . 2 . . 1 Repair Stations 6 | . . . . . 2 2 . . . . . . . 2 . . . Recycling Units 6 | . . . . . . 2 . . . 2 . . . . . . 2 Scanalyzers 8 | . . . . . 5 . . . . 3 . . . . . . . Garrison Access 8 | . . . . . 1 3 . 2 . 2 . . . . . . . Terminal Hacks 34 | . 4 . . 4 . 8 1 4 . . . 3 . 3 . 7 . Record 8 | . . . . . . . . . . . . 2 . . . 6 . Part Schematic 3 | . 3 . . . . . . . . . . . . . . . . Robot Analysis 3 | . . . . 2 . 1 . . . . . . . . . . . Open Door 5 | . . . . . . 3 . . . . . 1 . . . 1 . Branch Access Points 3 | . . . . 1 . . . 1 . . . . . 1 . . . Terminal Index 3 | . 1 . . . . . . 1 . . . . . 1 . . . Alert Level 1 | . . . . . . . . 1 . . . . . . . . . Unreport Threat 2 | . . . . 1 . . . . . . . . . 1 . . . Locate Traps 2 | . . . . . . 2 . . . . . . . . . . . Recall Extermination 1 | . . . . . . . . 1 . . . . . . . . . Zone Layout 3 | . . . . . . 2 1 . . . . . . . . . . Fabricator Hacks 2 | . . . . . . . . 1 . . . . . 1 . . . Load Schematic 1 | . . . . . . . . . . . . . . 1 . . . Build 1 | . . . . . . . . 1 . . . . . . . . . Repair Station Hacks 2 | . . . . . . . . . . . . . . 2 . . . Scan Component 1 | . . . . . . . . . . . . . . 1 . . . Repair 1 | . . . . . . . . . . . . . . 1 . . . Recycling Unit Hacks . | . . . . . . . . . . . . . . . . . . Scanalyzer 6 | . . . . . 4 . . . . 2 . . . . . . . Insert Component 3 | . . . . . 2 . . . . 1 . . . . . . . Analyze 3 | . . . . . 2 . . . . 1 . . . . . . . Garrison Access Hacks 3 | . . . . . . 1 . 1 . 1 . . . . . . . Seal Access 3 | . . . . . . 1 . 1 . 1 . . . . . . . Unauthorized Hacks 9 | . . . . 1 . 1 . 4 . . . . . 3 . . . Terminals 9 | . . . . 1 . 1 . 4 . . . . . 3 . . . Botnet 7 | . . . . 1 . 1 . 3 . . . . . 2 . . . Disrupt 1 | . . . . . . . . . . . . . . 1 . . . Operators 1 | . . . . . . . . 1 . . . . . . . . . Fabricators . | . . . . . . . . . . . . . . . . . . Repair Stations . | . . . . . . . . . . . . . . . . . . Recycling Units . | . . . . . . . . . . . . . . . . . . Scanalyzers . | . . . . . . . . . . . . . . . . . . Garrison Access . | . . . . . . . . . . . . . . . . . . Data Cores Recovered 1 | . . . . . . . . . . . . . . 1 . . . Used 1 | . . . . . . . . . . . . . . 1 . . . Hacking Detections 29 | . 3 . . 2 3 8 . 5 . 2 . . . 4 . . 2 Full Trace Events 14 | . 2 . . 1 1 4 . 1 . 2 . . . 2 . . 1 Feedback Events 1 | . . . . . . . . . . 1 . . . . . . . Corruption 1 | . . . . . . . . . . 1 . . . . . . . Feedback Blocked . | . . . . . . . . . . . . . . . . . . Robot Schematics Acquired . | . . . . . . . . . . . . . . . . . . Robots Built . | . . . . . . . . . . . . . . . . . . Authchips . | . . . . . . . . . . . . . . . . . . Time . | . . . . . . . . . . . . . . . . . . Total Robot Build Rating . | . . . . . . . . . . . . . . . . . . Part Schematics Acquired 6 | . 3 . . . 2 . . . . 1 . . . . . . . Parts Built 2 | . . . . . . . . 2 . . . . . . . . . Authchips . | . . . . . . . . . . . . . . . . . . Time 106 | . . . . . . . . 106 . . . . . . . . . Total Part Build Rating 12 | . . . . . . . . 12 . . . . . . . . . Parts Repaired . | . . . . . . . . . . . . . . . . . . Time 44 | . . . . . . . . . . . . . . 44 . . . Parts Recycled . | . . . . . . . . . . . . . . . . . . Recycled Matter . | . . . . . . . . . . . . . . . . . . Retrieved Matter . | . . . . . . . . . . . . . . . . . . Retrieved Components . | . . . . . . . . . . . . . . . . . . Parts Scanalyzed 3 | . . . . . 2 . . . . 1 . . . . . . . Part Schematics Acquired 3 | . . . . . 2 . . . . 1 . . . . . . . Parts Damaged . | . . . . . . . . . . . . . . . . . . Bothacking | -11 -10 -10 -10 -8 -7 -7 -7 -5 -5 -5 -5 -5 -4 -4 -4 -4 -3 ------------ Run | Yrd Mat Min Sub Mat Fac Sto Rec Fac Was Fac Upp War Pro Fac Upp Upp Res Used RIF Installer . | . . . . . . . . . . . . . . . . . . Robots Hacked . | . . . . . . . . . . . . . . . . . . Non-combat . | . . . . . . . . . . . . . . . . . . Combat . | . . . . . . . . . . . . . . . . . . Robot Hacks Applied . | . . . . . . . . . . . . . . . . . . Relay Couplers Released . | . . . . . . . . . . . . . . . . . . Fabnet Peak Effective % . | . . . . . . . . . . . . . . . . . . Robots Rewired . | . . . . . . . . . . . . . . . . . . Allies Hacked . | . . . . . . . . . . . . . . . . . . Hacks Repelled . | . . . . . . . . . . . . . . . . . . Allies | -11 -10 -10 -10 -8 -7 -7 -7 -5 -5 -5 -5 -5 -4 -4 -4 -4 -3 -------- Run | Yrd Mat Min Sub Mat Fac Sto Rec Fac Was Fac Upp War Pro Fac Upp Upp Res Total Allies 30 | . . . . . . 10 . . 20 . . . . . . . . Largest Group 20 | . . . . . . 10 . . 20 20 19 19 8 7 . . . Highest-Rated Group 758 | . . . . . . 173 . . 758 758 733 731 353 303 . . . Highest-Rated Ally 50 | . . . . . . 29 . . 50 50 50 50 50 46 . . . Total Orders 5 | . . . . . . . . 1 . . . 1 3 . . . . EXPLORE 5 | . . . . . . . . 1 . . . 1 3 . . . . Ally Attacks 322 | . . . . . . 59 . . . 95 32 69 40 27 . . . Total Damage 8230 | . . . . . . 601 . . . 2750 493 2703 1094 589 . . . Kills 43 | . . . . . . 7 . . . 15 . 11 5 5 . . . Allies Corrupted 2 | . . . . . . . . . . . . . . 2 . . . Allies Melted . | . . . . . . . . . . . . . . . . . . Intel | -11 -10 -10 -10 -8 -7 -7 -7 -5 -5 -5 -5 -5 -4 -4 -4 -4 -3 ------- Run | Yrd Mat Min Sub Mat Fac Sto Rec Fac Was Fac Upp War Pro Fac Upp Upp Res Active Infowar (turns) 2641 | . . . . 667 529 361 . 330 . . . . . 754 . . . Optics 752 | . . . . . . . . . . . . . . 752 . . . Sensors 1559 | . . . . 667 529 361 . . . . . . . 2 . . . Terrain 330 | . . . . . . . . 330 . . . . . . . . . Robot Analysis Total 3 | . . . . 2 . 1 . . . . . . . . . . . Derelict Logs Recovered 2 | . . . . . . . . . . . . . 1 . . 1 . Drone Launches 10 | . . . . . . . . 4 . . . 2 4 . . . . Drone Recoveries 6 | . . . . . . . . 2 . . . 2 2 . . . . Exploration | -11 -10 -10 -10 -8 -7 -7 -7 -5 -5 -5 -5 -5 -4 -4 -4 -4 -3 ------------- Run | Yrd Mat Min Sub Mat Fac Sto Rec Fac Was Fac Upp War Pro Fac Upp Upp Res Turns Passed 12361 | 70 478 539 1517 693 582 1905 177 1269 511 281 321 754 573 1598 332 86 675 Spaces Moved 6215 | 39 248 281 805 311 300 680 101 505 288 159 194 428 301 637 410 164 364 Core 720 | 2 1 . . . . . . . . . . . . 16 410 164 127 Treads 5061 | 37 247 281 805 311 300 680 101 332 288 159 194 428 301 455 . . 142 Legs 173 | . . . . . . . . 173 . . . . . . . . . Wheels 166 | . . . . . . . . . . . . . . 166 . . . Hover . | . . . . . . . . . . . . . . . . . . Flight 95 | . . . . . . . . . . . . . . . . . 95 Fastest Speed 24 | 50 160 160 160 160 163 160 160 120 160 160 160 160 160 50 50 50 24 Average Speed 155 | 154 163 160 182 160 163 211 160 148 160 160 160 160 160 153 50 50 138 Slowest Speed 950 | 160 550 160 240 163 163 243 160 400 160 160 160 160 160 950 50 50 385 Overloaded Moves . | . . . . . . . . . . . . . . . . . . Propulsion Burnouts . | . . . . . . . . . . . . . . . . . . Robots Hopped . | . . . . . . . . . . . . . . . . . . Potential Cave-ins 3 | . . . . . . . . . . . . . . 3 . . . Cave-ins Triggered . | . . . . . . . . . . . . . . . . . . Exploration Rate (%) 42 | 3 48 50 59 30 9 94 25 20 91 7 34 91 85 20 59 24 11 Regions Visited 17 Branch Regions 9 Pre-discovered Areas 1 | . . . . . . . . . . . . . 1 . . . . Known Exits Taken 5 | . . . . 1 1 . . . . 1 . . . 1 . 1 . Unknown Exits Taken 10 | 1 1 1 1 . . 1 1 . . . 1 1 1 . 1 . . Scrap Searched 4 | . . 1 . . . . . . . . . . 1 . . 2 . Spaces Dug 17 | . . . 8 . . . . . . . . . 9 . . . . Terrain Destroyed 460 | . . 21 84 16 . 47 . 12 . . 1 94 80 104 . . 1 Melee . | . . . . . . . . . . . . . . . . . . Projectile 66 | . . . . . . 22 . 5 . . 1 . 5 32 . . 1 AOE 393 | . . 21 84 16 . 25 . 6 . . . 94 75 72 . . . Terrain Rammed . | . . . . . . . . . . . . . . . . . . Walls Destroyed . | . . . . . . . . . . . . . . . . . . Machines Disabled . | . . . . . . . . . . . . . . . . . . Actions | -11 -10 -10 -10 -8 -7 -7 -7 -5 -5 -5 -5 -5 -4 -4 -4 -4 -3 --------- Run | Yrd Mat Min Sub Mat Fac Sto Rec Fac Was Fac Upp War Pro Fac Upp Upp Res Total 7993 | 46 295 361 831 421 375 924 106 866 340 183 197 493 366 991 535 166 497 Wait 784 | . 1 67 . 21 38 51 . 191 33 6 . 48 38 90 124 . 76 Move 6199 | 38 247 280 804 310 299 679 100 505 287 158 193 427 300 636 409 163 364 Hop . | . . . . . . . . . . . . . . . . . . Pick Up 123 | 2 12 4 1 17 9 15 . 22 4 3 . 3 2 24 . . 5 Fast Attach 93 | 6 14 . . . . 6 1 19 3 2 . 1 . 21 1 2 17 Attach 64 | . . . 4 5 4 7 . 13 1 . . 1 2 19 1 . 7 Detach 17 | . 3 . . . . 1 . 2 . . . . . 8 . 1 2 Swap 84 | . 2 2 1 9 6 28 . 3 2 2 . 3 6 18 . . 2 Drop 120 | . 5 1 . 13 9 22 . 19 8 7 . 5 2 26 . . 3 Fire 456 | . 11 7 21 46 10 108 5 71 . 2 4 5 16 134 . . 16 Melee 17 | . . . . . . . . 17 . . . . . . . . . Ram 11 | . . . . . . . . . . . . . . 6 . . 5 Kick . | . . . . . . . . . . . . . . . . . . Crush 21 | . . . . . . 6 . 4 . 2 . . . 9 . . . Escape Stasis 1 | . . . . . . . . . . 1 . . . . . . . Rewire 3 | . . . . . . 1 . . 2 . . . . . . . . Trap . | . . . . . . . . . . . . . . . . . . Miscellaneous . | . . . . . . . . . . . . . . . . . . Route ------- -11/Scrapyard -10/Materials (discovered 2 exits: [*Mat] / [*Min]) -10/Mines (discovered 4 exits: [*Mat x2] / [*Exi] / [*Sub]) -10/Subcaves -8/Materials -7/Factory -7/Storage (discovered 2 exits: [*Fac] / *Rec) -7/Recycling -5/Factory (discovered 2 exits: Upp x2) -5/Waste -5/Factory -5/Upper Caves -5/Warlord -4/Proximity Caves -4/Factory (discovered 4 exits: *Upp x2 / *Ext x2) -4/Upper Caves -4/Upper Caves -3/Research History --------- Turn | Location | Event 7 | -11/Scrapyard | Discovered new exit (range 14) 71 | -11/Scrapyard | Entered Materials 305 | -10/Materials | Build established: Mutant 423 | -10/Materials | Discovered new exit (range 8) 527 | -10/Materials | Discovered new exit (range 15) 549 | -10/Materials | Entered Mines 561 | -10/Mines | Discovered new exit (range 13) 741 | -10/Mines | Deemed a non-threat by the Exiles lab entrance 743 | -10/Mines | Discovered new exit (range 5) 842 | -10/Mines | Discovered new exit (range 13) 1072 | -10/Mines | Discovered new exit (range 5) 1088 | -10/Mines | Entered Subcaves 1089 | -10/Subcaves | Approached by a straggling Scientist 1613 | -10/Subcaves | Shifting Twisted Machinery released Piercing Trap 1909 | -10/Subcaves | Shifting Twisted Machinery released Sub. Power Source 2280 | -10/Subcaves | Shifting Twisted Machinery released Mak. System Shield 2589 | -10/Subcaves | Discovered new exit (range 6) 2605 | -10/Subcaves | Entered Materials 2605 | -8/Materials | Evolved 4 slots: Propulsion x1, Utility x3 2866 | -8/Materials | Central database locked down 3147 | -8/Materials | Discovered new exit (range 12) 3290 | -8/Materials | Identified exit to Factory 3298 | -8/Materials | Entered Factory 3298 | -7/Factory | Evolved 2 slots: Power x1, Utility x1 3769 | -7/Factory | Discovered new exit (range 14) 3845 | -7/Factory | Identified exit to Storage 3880 | -7/Factory | Entered Storage 4557 | -7/Storage | Assisted by bots powering up and referring to "LRC-V3" 4856 | -7/Storage | Build established: Commander-Mutant 5022 | -7/Storage | Lost 4 allies 5100 | -7/Storage | Discovered new exit (range 9) 5366 | -7/Storage | Build established: Mutant 5480 | -7/Storage | First assault squad dispatched 5741 | -7/Storage | Build established: Scavenger-Mutant 5782 | -7/Storage | Used back door to open Recycling access 5782 | -7/Storage | Discovered new exit (range 3) 5785 | -7/Storage | Entered Recycling 5944 | -7/Recycling | Discovered new exit (range 11) 5962 | -7/Recycling | Entered Factory 5962 | -5/Factory | Evolved 4 slots: Propulsion x1, Utility x3 6215 | -5/Factory | Fabricated Imp. Corruption Screen (x2) 6358 | -5/Factory | Lost 11 parts (1p4n3u3w) 6712 | -5/Factory | Build established: Hacker-Mutant 6839 | -5/Factory | Identified exit to Upper Caves 6886 | -5/Factory | Spotted B-75 Beast 6926 | -5/Factory | Destroyed B-75 Beast 7231 | -5/Factory | Sucked down chute 7231 | -5/Factory | Entered Waste 7232 | -5/Waste | Joined by Warlord forces that had cleared the area 7232 | -5/Waste | Destroyed 7 combat bots 7235 | -5/Waste | Build established: Scavenger-Mutant 7548 | -5/Waste | Discovered new exit (range 13) 7742 | -5/Waste | Entered Factory 7742 | -5/Factory | Accompanied by 20 allies 7837 | -5/Factory | Garrison activated, responded to threat 7918 | -5/Factory | Discovered exit to Upper Caves (range 15) 8023 | -5/Factory | Entered Upper Caves 8023 | -5/Upper Caves | Accompanied by 19 allies 8233 | -5/Upper Caves | Spotted B-75 Beast 8245 | -5/Upper Caves | Destroyed B-75 Beast 8299 | -5/Upper Caves | A Derelict revealed a hidden shortcut to "reach the base" 8344 | -5/Upper Caves | Entered Warlord 8344 | -5/Warlord | Accompanied by 19 allies 8597 | -5/Warlord | Warlord's base attacked by MAIN.C 8615 | -5/Warlord | Found Prototype Launcher 8615 | -5/Warlord | Identified Vortex Catalyst Activator 8792 | -5/Warlord | Met Warlord 8947 | -5/Warlord | Warlord forces counterattacked 8997 | -5/Warlord | Lost 3 allies 8997 | -5/Warlord | Spotted Striker 9000 | -5/Warlord | P-80 Master assimilated allied KN-2ZI(d) 9005 | -5/Warlord | Destroyed Striker 9026 | -5/Warlord | Destroyed 11 combat bots 9029 | -5/Warlord | Discovered new exit (range 13) 9098 | -5/Warlord | Entered Proximity Caves 9098 | -4/Proximity Caves | Accompanied by 8 allies 9197 | -4/Proximity Caves | Learned location of Testing (-2) 9215 | -4/Proximity Caves | Attracted the attention of an 0b10 checkpoint 9515 | -4/Proximity Caves | Spotted B-86 Titan 9527 | -4/Proximity Caves | Destroyed B-86 Titan 9631 | -4/Proximity Caves | Discovered new exit (range 14) 9671 | -4/Proximity Caves | Entered Factory 9671 | -4/Factory | Accompanied by 7 allies 9671 | -4/Factory | Evolved 2 slots: Utility x2 9813 | -4/Factory | Found Powered Armor 9819 | -4/Factory | Garrison activated, responded to threat 9821 | -4/Factory | Found Powered Armor 9850 | -4/Factory | Found Powered Armor 9898 | -4/Factory | Lost 4 allies 10476 | -4/Factory | Lost 5 parts (2p1n2u) 10815 | -4/Factory | Discovered new exit (range 7) 10915 | -4/Factory | Identified exit to Upper Caves 10915 | -4/Factory | Identified exit to Extension 11077 | -4/Factory | Cargo convoy interrupted 11103 | -4/Factory | Garrison activated, responded to threat 11253 | -4/Factory | Released all parts (10) 11262 | -4/Factory | Core integrity fell below 50% 11269 | -4/Factory | Entered Upper Caves 11277 | -4/Upper Caves | Spotted B-86 Titan 11314 | -4/Upper Caves | Lost 18 parts (3p6n6u3w) 11499 | -4/Upper Caves | Core integrity fell below 20% 11528 | -4/Upper Caves | Build established: Mutant 11596 | -4/Upper Caves | Discovered new exit (range 11) 11601 | -4/Upper Caves | Entered another Upper Caves area 11655 | -4/Upper Caves | Identified exit to Research 11663 | -4/Upper Caves | Entered an active Warlord outpost 11670 | -4/Upper Caves | Learned Extension trap positions 11670 | -4/Upper Caves | Learned Factory security intel 11670 | -4/Upper Caves | Learned Research terminal intel 11670 | -4/Upper Caves | Learned Factory garrison access intel 11687 | -4/Upper Caves | Entered Research 11687 | -3/Research | Evolved 2 slots: Power x1, Utility x1 11688 | -3/Research | Loaded intel: 20 terminal locations 11718 | -3/Research | Spotted B-86 Titan 12282 | -3/Research | Released all parts (14) 12330 | -3/Research | System corruption reached 10% 12337 | -3/Research | Spotted Executioner 12337 | -3/Research | Spotted Striker 12337 | -3/Research | Spotted Striker 12338 | -3/Research | Cargo convoy interrupted 12340 | -3/Research | Core integrity fell below 50% 12342 | -3/Research | Spotted Striker 12348 | -3/Research | Core integrity fell below 20% 12362 | -3/Research | Destroyed by S-43 Plague with Heavy Machine Gun Last Messages --------------- 12342_ X-87 Electro unfolds itself. 12342_ I-47 Archangel unfolds itself. 12342_ Penetrated by Slug. 12342_ Slug penetrates Wall. 12343_ Acquired Diametric Drive. 12345_ Diametric Drive destroyed. 12345_ Knocked back. 12346_ Acquired 5 matter. 12346_ Diametric Drive destroyed. 12346_ Knocked back. 12346_ Dropped Imp. Fusion Compressor. 12348_ :JSL81FCK :C%9O7PY 12348_ Acquired Faulty Diametric Drive. 12349_ Knocked back. 12349_ Diametric Drive destroyed. 12350_ Slug penetrates G-67 Veteran. 12351_ Knocked back. 12352_ P-80 Master resets S-43 Plague, system corruption cleaned. 12352_ Slammed into P-80 Master. 12355_ P-80 Master resets P-80 Master, system corruption cleaned. Map ----- +----------------------------------------------------+ | ?????????????????????????????????????????????????? | | ?????????????????????????????????????????????????? | | ?????????????????????????????????????????????????? | | ?????????????????????????????????????????????????? | | ?????????????????????????????????????????????????? | | ?????????????????????????????????????????????????? | | ?????????????????????????????????????????????????? | | ?????????????????????????????????????????????????? | | ?????????????????????????????????????????????????? | | #####????????????????????????????????????????????? | | #????????????????????????????????????????????? | | #????????????????????????????????????????????? | | "" #????????????????????????????????????????????? | | "" #????????????????????????????????????????????? | | "" #????????????????????????????????????????????? | | S #????????????????????????????????????????????? | | "" #????????????????????????????????????????????? | | "" #????????????????????????????????????????????? | | "" #????????????????????????????????????????????? | | #????????????????????????????????????????????? | | #????????????????????????????????????????????? | | +####################+#############+### ?????????? | | k ?????????? | | k ????????? | | m s ????????? | | p p sKsK K @ k w ????????? | | #"#####/####################### ####?????????????? | | %" #?????????????????????????????????????? | | %# % #?????????????????????????????????????? | | *" #?????????????????????????????????????? | | *" #?????????????????????????????????????? | | = #] """ #?????????????????????????????????????? | | # R" ##########????????????????????????????? | | + """ # ????????????????????????????? | | # # ????????????????????????????? | | # # ????????????????????????????? | | #######+#### ""???????????????????????????? | | ####??# #??# """??????????????????????????? | | #??# #??# """"#????????????????????????? | | #### #??# """"#????????????????????????? | | + #??# """"#????????????????????????? | | " # #??# #????????????????????????? | | " # #### ######???????????????????? | | " + +?? ?? ????????????????????? | | " #### #???? ???? #?????????????????????? | | #??# #######+###### #?????????????????????? | | #??# +?????????????????????? | | ####??########## #?????????????????????? | | ???????????????# #?????????????????????? | | ???????????????# +?????????????????????? | +----------------------------------------------------+ Best States ------------- Heat Dissipation 74 Energy Generation 59 Energy Capacity 1020 Matter Stores 300 Matter Capacity 300 Sight Range 22 Robot Scan Range 15 Terrain Scan Range 16 Terrain Scan Density 85 Corruption Block 15 Armor Coverage 2050 Utility Shielding 66 Phase Shifting 5 Evasion (%) 70 Targeting Accuracy 16 Target Analysis 6 Core Analysis 6 Armor Integrity Analysis 30 Recoil Reduction 4 Matter Filtering 30 Particle Charging 15 Offensive Hacking 24 Item Schematics ----------------- Lrg. Storage Unit | -10/Materials | Hacked Hcp. Storage Unit | -10/Materials | Hacked Targeting Computer | -10/Materials | Hacked Imp. Airjet | -7/Factory | Scanalyzed Imp. Terrain Scanner | -7/Factory | Scanalyzed Nova Cannon | -5/Factory | Scanalyzed Robot Schematics ------------------ None Fabricated ------------ Imp. Corruption Screen | x2 | -5/Factory | Preloaded Repaired ---------- Nothing Alien Tech Used ----------------- None Achievements -------------- None Challenges ------------ None Game ------ Seed GuidedMediumBlaster Manual? 0 Play Time 02:00:01 Cumulative 645.8 hours Start 2025.06.12 @ 00:47:50 End 2025.06.13 @ 00:37:34 Sessions 3 Manual Loads 0 Difficulty Rogue Special Mode None Game No. 421 Rogue 421 Adventurer 0 Explorer 0 Win Type - Total 38 Types 25/1/6/6/0/0/0/0/0/0 Lore% 68 Gallery% 74 Achievement% 78 Wizard Run 0 Options --------- Layout 0 ASCII 0 Keyboard 1 Movement Numpad Keybinds 0 Fullscreen 2 Font 24/Smallcaps Map View 76x50 Zoom Use 0% Tactical HUD 1 Map Filters NONE Filters NONE Steam 1 RUN: 24276c1f-7775-4f5d-83ba-989977c99db0